bitfinex/quotes_SOLUSD_20250617
["timestamp","ask_amount","ask_price","bid_price","bid_amount"]
[1750174801730,11.53726891,147.73,147.68,11.53726891]
[1750174801924,150.44132285,147.72,147.68,11.53726891]
[1750174802244,150.44132285,147.71,147.68,11.53726891]
[1750174802452,145.53726891,147.71,147.7,11.53726891]
[1750174802666,145.53726891,147.74,147.73,26.0]
[1750174802828,145.53726891,147.78,147.73,44.30637471]
[1750174803032,145.53726891,147.78,147.77,11.53726891]
[1750174803327,12.81046374,147.82,147.77,11.53726891]
[1750174803328,145.53726891,147.81,147.77,11.53726891]
[1750174803521,145.53726891,147.81,147.8,11.53726891]
[1750174803943,145.53726891,147.81,147.76,26.0]
[1750174804144,145.53726891,147.81,147.78,11.53726891]
[1750174804346,145.53726891,147.81,147.79,11.53726891]
[1750174805137,145.53726891,147.81,147.8,11.53726891]
[1750174805829,145.53726891,147.81,147.75,26.14216157]
[1750174806130,152.30292641,147.81,147.77,11.53726891]
[1750174806333,152.30292641,147.81,147.75,32.91018156]
[1750174806535,152.30292641,147.81,147.77,11.53726891]
[1750174807536,145.53726891,147.81,147.77,11.53726891]
[1750174807736,145.53726891,147.81,147.78,11.53726891]
[1750174808266,152.30274233,147.81,147.78,11.53726891]
[1750174808970,152.30274233,147.81,147.76,11.53726891]
[1750174809262,11.53726891,147.8,147.76,11.53726891]
[1750174809630,11.53726891,147.79,147.72,26.0]
[1750174810076,11.53726891,147.79,147.75,11.53726891]
[1750174810257,152.30274233,147.81,147.72,26.0]
[1750174810438,145.53726891,147.8,147.72,26.0]
[1750174810636,145.53726891,147.8,147.76,11.53726891]
[1750174810837,145.53726891,147.79,147.76,11.53726891]
[1750174811146,145.53726891,147.79,147.75,11.53726891]
[1750174811460,152.3037208,147.79,147.73,6.7691058]
[1750174811665,145.53726891,147.78,147.73,6.7691058]
[1750174811871,145.53726891,147.78,147.75,11.53726891]
[1750174812041,145.53726891,147.78,147.73,6.7691058]
[1750174812244,145.53726891,147.78,147.75,11.53726891]
[1750174812785,145.53726891,147.78,147.76,11.53726891]
[1750174813075,145.53726891,147.78,147.77,11.53726891]
[1750174813384,163.84151779,147.78,147.72,26.0]
[1750174813683,11.53726891,147.77,147.73,11.53726891]
[1750174813884,152.30424888,147.78,147.73,11.53726891]
[1750174814179,11.53726891,147.76,147.72,11.53726891]
[1750174814544,6.76741605,147.77,147.71,32.76990018]
[1750174814750,6.76741605,147.77,147.72,11.53726891]
[1750174814979,6.76741605,147.77,147.71,44.30716909]
[1750174815148,145.53726891,147.78,147.72,11.53726891]
[1750174815391,145.53726891,147.78,147.77,11.53726891]
[1750174816247,145.53726891,147.78,147.75,37.53726891]
[1750174816448,145.53726891,147.78,147.75,44.30533924]
[1750174816745,145.53726891,147.78,147.76,11.53726891]
[1750174817370,145.53726891,147.78,147.75,32.76814032]
[1750174817575,145.53726891,147.78,147.75,37.53726891]
[1750174817780,145.53726891,147.78,147.75,11.53726891]
[1750174818556,145.53726891,147.78,147.76,11.53726891]
[1750174821382,145.53726891,147.78,147.75,11.53726891]
[1750174822912,157.07453782,147.78,147.74,26.0]
[1750174823179,11.53726891,147.77,147.74,26.0]
[1750174823382,163.84136516,147.78,147.74,37.53726891]
[1750174823566,157.07453782,147.78,147.74,44.30577565]
[1750174823754,145.53726891,147.78,147.75,11.53726891]
[1750174823955,145.53726891,147.78,147.76,11.53726891]
[1750174824580,145.53726891,147.78,147.75,11.53726891]
[1750174825873,145.53726891,147.78,147.74,32.76850674]
[1750174826186,145.53726891,147.78,147.75,11.53726891]
[1750174826485,145.53726891,147.78,147.74,32.76850674]
[1750174826692,145.53726891,147.78,147.75,11.53726891]
[1750174828493,145.53726891,147.78,147.75,18.30543017]
[1750174828694,145.53726891,147.78,147.75,11.53726891]
[1750174828886,152.30414773,147.78,147.74,37.53726891]
[1750174829189,157.07453782,147.78,147.74,44.30590763]
[1750174829397,145.53726891,147.78,147.75,11.53726891]
[1750174829898,152.30408865,147.78,147.75,11.53726891]
[1750174830075,152.30408865,147.78,147.74,37.53726891]
[1750174830076,163.84135756,147.78,147.74,37.53726891]
[1750174830782,145.53726891,147.78,147.75,11.53726891]
[1750174830966,145.53726891,147.78,147.74,32.76863067]
[1750174831166,145.53726891,147.78,147.76,11.53726891]
[1750174831668,145.53726891,147.78,147.75,11.53726891]
[1750174834512,145.53726891,147.78,147.76,11.53726891]
[1750174834921,145.53726891,147.78,147.75,6.76794649]
[1750174835089,145.53726891,147.78,147.75,11.53726891]
[1750174835799,145.53726891,147.78,147.77,11.53726891]
[1750174835969,145.53726891,147.78,147.76,11.53726891]
[1750174836884,145.53726891,147.78,147.76,6.73461127]
[1750174838514,152.27188018,147.77,147.74,26.0]
[1750174838679,6.73461127,147.76,147.72,6.73461127]
[1750174838879,145.53726891,147.75,147.72,6.73461127]
[1750174840579,6.73461127,147.74,147.69,26.0]
[1750174840805,6.73461127,147.74,147.61,16.770022]
[1750174840806,18.64964886,147.69,147.62,6.77414984]
[1750174841019,0.28432314,147.71,147.62,6.77414984]
[1750174841020,32.22,147.71,147.62,6.77414984]
[1750174841311,6.73461127,147.7,147.62,6.77414984]
[1750174841515,6.73461127,147.7,147.65,26.0]
[1750174841810,13.50512933,147.7,147.62,6.77414984]
[1750174842014,6.73461127,147.7,147.66,6.73461127]
[1750174842374,6.76963489,147.72,147.66,32.73461127]
[1750174842591,6.73461127,147.71,147.66,32.73461127]
[1750174842784,18.933972,147.72,147.68,6.73461127]
[1750174843101,25.66858327,147.72,147.67,6.73461127]
[1750174843494,18.933972,147.72,147.68,6.73461127]
[1750174843682,32.43824141,147.72,147.67,13.50646743]
[1750174844493,25.66858327,147.72,147.67,13.50646743]
[1750174844708,25.66858327,147.72,147.68,6.73461127]
[1750174844909,145.53726891,147.73,147.69,6.73461127]
[1750174845088,152.27188018,147.73,147.69,6.73461127]
[1750174845502,145.53726891,147.73,147.69,6.73461127]
[1750174846094,145.53726891,147.73,147.69,13.50535938]
[1750174846286,145.53726891,147.73,147.71,6.73461127]
[1750174846506,145.53726891,147.73,147.69,6.77074811]
[1750174846507,145.53726891,147.73,147.72,6.73461127]
[1750174846719,145.53726891,147.77,147.72,32.73461127]
[1750174846920,145.53726891,147.77,147.76,6.73461127]
[1750174847080,145.53726891,147.77,147.72,26.0]
[1750174847381,145.53726891,147.77,147.76,6.73461127]
[1750174847580,145.53726891,147.77,147.72,26.0]
[1750174847581,145.53726891,147.77,147.75,6.73461127]
[1750174848225,145.53726891,147.77,147.73,6.76900426]
[1750174848386,145.53726891,147.77,147.76,26.0]
[1750174848580,145.53726891,147.77,147.76,32.73461127]
[1750174848784,145.53726891,147.77,147.76,37.54423672]
[1750174850381,145.53726891,147.77,147.76,44.31196817]
[1750174850985,145.53726891,147.77,147.76,32.76773145]
[1750174851308,145.53726891,147.77,147.76,44.31196817]
[1750174851507,145.53726891,147.81,147.76,44.31196817]
[1750174851682,145.53726891,147.81,147.79,11.54423672]
[1750174851886,145.53726891,147.81,147.8,11.54423672]
[1750174852114,145.53726891,147.86,147.81,6.76544212]
[1750174852301,145.53726891,147.86,147.85,11.54423672]
[1750174852490,145.53726891,147.86,147.81,6.76544212]
[1750174852491,145.53726891,147.86,147.84,11.54423672]
[1750174852892,145.53726891,147.86,147.81,23.67904742]
[1750174853210,145.53726891,147.86,147.84,11.54423672]
[1750174854114,145.53726891,147.86,147.85,11.54423672]
[1750174854691,145.53726891,147.86,147.83,6.76452682]
[1750174854885,145.53726891,147.86,147.83,18.30876354]
[1750174855086,157.08150563,147.86,147.75,6.013]
[1750174855303,157.08150563,147.86,147.82,11.54423672]
[1750174855692,145.53726891,147.86,147.83,11.54423672]
[1750174856100,145.53726891,147.86,147.85,18.30784848]
[1750174856627,145.53726891,147.86,147.84,18.30813908]
[1750174857412,145.53726891,147.86,147.82,6.76498444]
[1750174857617,145.53726891,147.86,147.84,11.54423672]
[1750174858310,145.53726891,147.86,147.83,18.30864124]
[1750174858511,145.53726891,147.86,147.84,11.54423672]
[1750174858813,145.53726891,147.86,147.83,18.30864124]
[1750174860210,145.53726891,147.86,147.84,18.30808258]
[1750174860717,145.53726891,147.86,147.84,11.54423672]
[1750174861012,145.53726891,147.86,147.81,26.0]
[1750174861185,145.53726891,147.86,147.72,10.0]
[1750174861186,18.64964886,147.81,147.73,18.31334252]
[1750174861384,50.70964886,147.81,147.75,11.54423672]
[1750174861594,11.54423672,147.79,147.75,11.54423672]
[1750174862111,18.64964886,147.81,147.75,11.54423672]
[1750174862313,18.64964886,147.81,147.75,18.31215158]
[1750174862514,11.54423672,147.8,147.76,11.54423672]
[1750174862816,11.54423672,147.8,147.75,18.31215158]
[1750174863016,11.54423672,147.79,147.75,18.31215158]
[1750174863219,11.54423672,147.79,147.75,6.76791486]
[1750174863420,38.82503173,147.82,147.74,37.54423672]
[1750174863421,11.54423672,147.77,147.74,26.0]
[1750174863596,11.54423672,147.77,147.73,11.54423672]
[1750174863800,11.54423672,147.77,147.73,37.54423672]
[1750174863995,11.54423672,147.78,147.74,11.54423672]
[1750174864515,32.06,147.8,147.74,18.31280113]
[1750174864516,11.54423672,147.79,147.74,18.31280113]
[1750174864716,11.54423672,147.78,147.74,18.31280113]
[1750174864917,11.54423672,147.75,147.71,6.76987741]
[1750174865425,11.54423672,147.76,147.71,18.31411413]
[1750174865589,11.54423672,147.76,147.72,11.54423672]
[1750174866127,11.54423672,147.79,147.75,11.54423672]
[1750174866331,145.53726891,147.81,147.77,18.31151018]
[1750174866619,157.08150563,147.81,147.77,11.54423672]
[1750174866916,152.30273731,147.81,147.76,18.31181011]
[1750174867129,163.84697403,147.81,147.76,18.31181011]
[1750174867307,145.53726891,147.81,147.77,11.54423672]
[1750174867627,145.53726891,147.8,147.77,11.54423672]
[1750174867793,145.53726891,147.8,147.76,6.76757339]
[1750174868117,145.53726891,147.8,147.77,11.54423672]
[1750174868300,145.53726891,147.8,147.78,11.54423672]
[1750174868614,145.53726891,147.8,147.78,18.31098717]
[1750174868816,145.53726891,147.8,147.79,11.54423672]
[1750174869406,6.76424859,147.84,147.79,11.54423672]
[1750174869591,145.53726891,147.86,147.78,14.91975045]
[1750174869796,11.54423672,147.84,147.79,37.54423672]
[1750174870192,11.54423672,147.8,147.75,6.7681895]
[1750174870414,11.54423672,147.8,147.75,44.31242622]
[1750174870612,6.76499377,147.82,147.75,6.7681895]
[1750174870613,11.54423672,147.78,147.75,6.7681895]
[1750174870811,0.28432314,147.81,147.75,18.31242622]
[1750174871116,11.54423672,147.79,147.75,18.31242622]
[1750174871522,0.28432314,147.81,147.75,18.31242622]
[1750174871732,32.0,147.83,147.75,23.68866327]
[1750174871937,11.54423672,147.82,147.78,11.54423672]
[1750174872138,18.64964886,147.83,147.77,11.54423672]
[1750174872439,11.54423672,147.81,147.77,6.7670401]
[1750174872652,202.43568238,147.85,147.79,11.54423672]
[1750174872653,185.38436891,147.85,147.79,11.54423672]
[1750174872936,145.53726891,147.85,147.83,11.54423672]
[1750174873133,38.99388558,147.88,147.84,11.54423672]
[1750174873134,15.56236577,147.88,147.84,11.54423672]
[1750174873348,8.8,147.88,147.84,11.54423672]
[1750174873707,24.73252246,147.89,147.85,11.54423672]
[1750174873925,11.54423672,147.89,147.82,0.14216157]
[1750174874134,18.64964886,147.9,147.82,0.14216157]
[1750174874437,11.54423672,147.9,147.86,11.54423672]
[1750174874807,152.29824431,147.91,147.84,0.14216157]
[1750174875013,157.08150563,147.91,147.87,11.54423672]
[1750174875210,145.53726891,147.91,147.86,26.0]
[1750174875517,26.37253997,147.92,147.87,11.54423672]
[1750174875717,19.61199961,147.92,147.86,26.0]
[1750174876228,19.61199961,147.92,147.89,11.54423672]
[1750174876440,31.15623633,147.92,147.88,11.54423672]
[1750174876623,26.37253106,147.92,147.86,26.0]
[1750174876824,11.54423672,147.91,147.86,37.54423672]
[1750174877029,26.37253106,147.92,147.85,0.14216157]
[1750174877212,26.37253106,147.92,147.86,11.54423672]
[1750174877417,26.37253106,147.92,147.85,11.54423672]
[1750174877418,11.54423672,147.9,147.85,11.54423672]
[1750174877738,11.54423672,147.9,147.84,32.76365315]
[1750174877739,0.28432314,147.9,147.84,37.54423672]
[1750174878143,11.54423672,147.89,147.85,11.54423672]
[1750174878339,0.28432314,147.9,147.85,11.54423672]
[1750174878639,11.54423672,147.9,147.86,11.54423672]
[1750174878842,36.51302719,147.92,147.87,11.54423672]
[1750174878843,30.19388558,147.91,147.87,11.54423672]
[1750174879040,19.61199961,147.92,147.89,11.54423672]
[1750174879213,19.61199961,147.92,147.88,26.0]
[1750174879419,19.61199961,147.92,147.89,11.54423672]
[1750174879650,31.15623633,147.92,147.88,26.0]
[1750174879829,31.15623633,147.92,147.88,37.54423672]
[1750174880144,26.37249294,147.92,147.88,37.54423672]
[1750174880452,31.15623633,147.92,147.88,37.54423672]
[1750174880941,26.3726744,147.92,147.88,11.54423672]
[1750174881146,26.3726744,147.92,147.87,11.54423672]
[1750174881346,26.3726744,147.92,147.88,11.54423672]
[1750174882250,11.54423672,147.91,147.87,11.54423672]
[1750174882431,11.54423672,147.91,147.85,26.0]
[1750174882626,18.30556193,147.9,147.85,37.54423672]
[1750174882838,6.76132521,147.9,147.83,6.76445166]
[1750174883145,11.54423672,147.89,147.85,11.54423672]
[1750174883523,18.30556193,147.9,147.85,11.54423672]
[1750174883938,11.54423672,147.89,147.85,11.54423672]
[1750174884235,11.54423672,147.89,147.84,11.54423672]
[1750174884632,6.76132521,147.9,147.84,11.54423672]
[1750174884843,6.76132521,147.9,147.87,11.54423672]
[1750174885228,25.41059816,147.91,147.88,11.54423672]
[1750174885446,19.61199961,147.92,147.89,11.54423672]
[1750174885837,37.91672885,147.92,147.88,26.0]
[1750174886640,26.37249213,147.92,147.88,26.0]
[1750174887044,11.54423672,147.89,147.81,6.90760369]
[1750174887354,157.08150563,147.88,147.84,11.54423672]
[1750174887552,145.53726891,147.87,147.84,11.54423672]
[1750174887959,145.53726891,147.87,147.83,11.54423672]
[1750174888530,163.84446516,147.87,147.82,26.0]
[1750174888734,11.54423672,147.85,147.81,11.54423672]
[1750174889141,145.53726891,147.86,147.83,11.54423672]
[1750174889354,157.08150563,147.86,147.82,11.54423672]
[1750174889738,157.08150563,147.86,147.79,6.76635766]
[1750174889938,163.84498925,147.86,147.82,37.54423672]
[1750174890142,163.84498925,147.86,147.82,26.0]
[1750174890335,163.84498925,147.86,147.82,37.54423672]
[1750174890557,152.30075253,147.86,147.82,37.54423672]
[1750174891164,152.30075253,147.86,147.83,11.54423672]
[1750174891664,157.08150563,147.86,147.82,37.54423672]
[1750174891837,145.53726891,147.86,147.82,37.54423672]
[1750174892158,163.84471363,147.86,147.81,26.0]
[1750174892467,163.84471363,147.86,147.82,26.0]
[1750174892637,11.54423672,147.83,147.79,11.54423672]
[1750174892834,18.64964886,147.84,147.79,11.54423672]
[1750174893059,145.53726891,147.85,147.82,11.54423672]
[1750174893374,11.54423672,147.83,147.79,26.0]
[1750174893542,157.08150563,147.82,147.78,11.54423672]
[1750174893742,11.54423672,147.81,147.77,11.54423672]
[1750174893937,11.54423672,147.81,147.76,11.54423672]
[1750174894366,163.84673199,147.82,147.77,11.54423672]
[1750174894540,145.53726891,147.82,147.78,11.54423672]
[1750174894751,145.53726891,147.82,147.79,11.54423672]
[1750174895467,152.30230398,147.82,147.79,11.54423672]
[1750174896164,145.53726891,147.82,147.79,11.54423672]
[1750174896352,152.30227978,147.82,147.79,11.54423672]
[1750174896544,152.30227978,147.82,147.78,11.54423672]
[1750174897069,152.30227978,147.82,147.77,26.0]
[1750174897271,11.54423672,147.81,147.77,37.54423672]
[1750174897568,18.3100388,147.81,147.77,37.54423672]
[1750174897736,18.3100388,147.81,147.77,26.0]
[1750174898162,11.54423672,147.8,147.77,26.0]
[1750174898354,11.54423672,147.8,147.76,11.54423672]
[1750174898563,6.76580208,147.81,147.76,11.54423672]
[1750174898841,18.3100388,147.81,147.77,11.54423672]
[1750174899147,11.54423672,147.8,147.76,11.54423672]
[1750174899979,18.31032507,147.8,147.76,11.54423672]
[1750174900970,6.76608835,147.8,147.74,27.6175]
[1750174901187,6.76608835,147.8,147.75,11.54423672]
[1750174901343,11.54423672,147.79,147.75,11.54423672]
[1750174901678,6.76608835,147.8,147.75,11.54423672]
[1750174901864,25.41509098,147.81,147.76,11.54423672]
[1750174902173,11.54423672,147.8,147.76,11.54423672]
[1750174902546,11.54423672,147.77,147.74,26.0]
[1750174902771,11.54423672,147.77,147.73,11.54423672]
[1750174903160,145.53726891,147.79,147.74,11.54423672]
[1750174903349,30.19388558,147.77,147.72,26.0]
[1750174903671,18.64964886,147.78,147.7,14.62184266]
[1750174903841,18.64964886,147.78,147.7,40.62184266]
[1750174903842,18.31217952,147.76,147.7,40.62184266]
[1750174904042,18.31217952,147.76,147.71,11.54423672]
[1750174904337,11.54423672,147.76,147.72,11.54423672]
[1750174904742,152.30471315,147.77,147.74,11.54423672]
[1750174904743,145.53726891,147.77,147.74,11.54423672]
[1750174904973,145.53726891,147.77,147.75,11.54423672]
[1750174905176,11.54423672,147.81,147.76,11.54423672]
[1750174905476,11.54423672,147.81,147.77,11.54423672]
[1750174905772,18.64964886,147.82,147.77,11.54423672]
[1750174905982,11.54423672,147.8,147.76,11.54423672]
[1750174906270,11.54423672,147.79,147.75,11.54423672]
[1750174907442,11.54423672,147.77,147.73,26.0]
[1750174907663,11.54423672,147.77,147.72,18.31367923]
[1750174907862,11.54423672,147.76,147.72,18.31367923]
[1750174908446,6.76743757,147.77,147.72,18.31367923]
[1750174908664,11.54423672,147.76,147.72,11.54423672]
[1750174908856,6.76743757,147.77,147.72,18.31374115]
[1750174909060,11.54423672,147.76,147.72,18.31374115]
[1750174909475,11.54423672,147.76,147.71,32.76987817]
[1750174909676,11.54423672,147.76,147.72,11.54423672]
[1750174909867,6.76743757,147.77,147.71,11.54423672]
[1750174910066,11.54423672,147.76,147.7,32.77015678]
[1750174910280,11.54423672,147.76,147.72,11.54423672]
[1750174910589,11.54423672,147.76,147.7,32.77015678]
[1750174910792,11.54423672,147.76,147.72,11.54423672]
[1750174910989,25.41619936,147.79,147.71,0.14216157]
[1750174911162,30.19388558,147.78,147.74,11.54423672]
[1750174911357,18.64964886,147.78,147.73,11.54423672]
[1750174911661,11.54423672,147.78,147.74,11.54423672]
[1750174912276,11.54423672,147.78,147.74,26.0]
[1750174912472,11.54423672,147.78,147.74,37.54423672]
[1750174912778,11.54423672,147.78,147.74,26.0]
[1750174913084,145.53726891,147.77,147.74,26.0]
[1750174914778,18.64964886,147.75,147.68,6.77139761]
[1750174914974,23.68547666,147.77,147.69,6.74098782]
[1750174914975,6.74098782,147.73,147.69,6.74098782]
[1750174915179,152.27825673,147.74,147.7,6.74098782]
[1750174915692,152.27825673,147.74,147.68,32.77139761]
[1750174915989,152.27825673,147.74,147.7,6.74098782]
[1750174916293,152.30596664,147.74,147.7,6.74098782]
[1750174916663,6.94682908,147.78,147.73,6.74098782]
[1750174916990,11.54892186,147.77,147.72,11.54892186]
[1750174917172,11.54892186,147.76,147.7,6.77006671]
[1750174917379,11.54892186,147.76,147.72,11.54892186]
[1750174917579,11.54892186,147.74,147.69,32.77078271]
[1750174917779,11.54892186,147.74,147.69,44.31970457]
[1750174917984,11.54892186,147.73,147.69,44.31970457]
[1750174919095,18.31766102,147.74,147.69,32.77078271]
[1750174919293,11.54892186,147.72,147.69,26.0]
[1750174919666,11.54892186,147.73,147.69,37.54892186]
[1750174919866,11.54892186,147.73,147.69,26.0]
[1750174920071,6.76873916,147.74,147.69,26.0]
[1750174920273,11.54892186,147.72,147.69,26.0]
[1750174920901,11.54892186,147.7,147.66,11.54892186]
[1750174923198,11.54892186,147.74,147.68,26.0]
[1750174923511,11.54892186,147.69,147.65,6.77261889]
[1750174923690,11.54892186,147.67,147.63,19.94509083]
[1750174923885,11.54892186,147.68,147.63,45.94509083]
[1750174924207,11.54892186,147.72,147.67,11.54892186]
[1750174924425,18.31791254,147.74,147.69,11.54892186]
[1750174924928,11.54892186,147.72,147.68,11.54892186]
[1750174925298,18.31852394,147.72,147.68,11.54892186]
[1750174925498,18.31852394,147.72,147.67,11.54892186]
[1750174925725,6.76960208,147.72,147.67,11.54892186]
[1750174926024,6.76960208,147.72,147.66,6.77221304]
[1750174926025,6.76960208,147.72,147.68,11.54892186]
[1750174926225,18.31852394,147.72,147.68,11.54892186]
[1750174926729,11.54892186,147.72,147.68,11.54892186]
[1750174926933,18.31815634,147.73,147.68,11.54892186]
[1750174927114,25.41842759,147.74,147.7,11.54892186]
[1750174927313,145.53726891,147.77,147.73,11.54892186]
[1750174927512,145.53726891,147.77,147.76,11.54892186]
[1750174927711,163.85349182,147.77,147.71,26.0]
[1750174927913,18.64964886,147.76,147.71,26.0]
[1750174928205,18.64964886,147.76,147.71,37.54892186]
[1750174928206,11.54892186,147.75,147.71,37.54892186]
[1750174928515,11.54892186,147.74,147.7,11.54892186]
[1750174928723,18.31759854,147.74,147.7,11.54892186]
[1750174930129,18.31725165,147.75,147.7,18.31928757]
[1750174930326,18.64964886,147.76,147.7,6.77036571]
[1750174930327,11.54892186,147.76,147.7,6.77036571]
[1750174930502,163.85356441,147.77,147.73,11.54892186]
[1750174930702,11.54892186,147.76,147.72,11.54892186]
[1750174931128,11.54892186,147.76,147.69,6.77093912]
[1750174931321,11.54892186,147.76,147.72,11.54892186]
[1750174932433,6.7681895,147.75,147.72,11.54892186]
[1750174932611,11.54892186,147.74,147.7,11.54892186]
[1750174933051,11.54892186,147.71,147.63,1.6229]
[1750174933205,11.54892186,147.67,147.63,6.77363575]
[1750174933406,11.54892186,147.66,147.62,18.32288413]
[1750174933705,145.53726891,147.69,147.62,18.32288413]
[1750174933907,11.54892186,147.67,147.64,26.0]
[1750174934310,145.53726891,147.69,147.61,24.80335236]
[1750174934311,11.54892186,147.65,147.61,24.80335236]
[1750174934537,11.54892186,147.66,147.62,11.54892186]
[1750174935535,145.53726891,147.68,147.64,37.54892186]
[1750174935844,157.08619077,147.68,147.64,11.54892186]
[1750174936130,11.54892186,147.67,147.62,26.0]
[1750174936438,11.54892186,147.67,147.63,11.54892186]
[1750174936601,145.53726891,147.68,147.62,26.0]
[1750174936602,157.08619077,147.68,147.64,18.32215404]
[1750174937418,11.54892186,147.67,147.64,6.77323218]
[1750174937829,145.53726891,147.68,147.59,18.70980645]
[1750174938006,11.54892186,147.65,147.62,26.0]
[1750174938333,18.64964886,147.66,147.62,26.0]
[1750174938547,18.64964886,147.66,147.6,18.32398961]
[1750174938710,145.53726891,147.67,147.61,11.54892186]
[1750174939045,11.54892186,147.66,147.62,11.54892186]
[1750174939217,11.54892186,147.66,147.61,11.54892186]
[1750174939409,11.54892186,147.66,147.6,23.71273712]
[1750174939606,11.54892186,147.66,147.61,11.54892186]
[1750174940216,11.54892186,147.65,147.6,18.32398961]
[1750174940537,157.08619077,147.67,147.63,18.32261284]
[1750174940837,11.54892186,147.66,147.61,6.77460876]
[1750174941020,145.53726891,147.67,147.61,6.77460876]
[1750174941021,157.08619077,147.67,147.62,11.54892186]
[1750174941228,11.54892186,147.66,147.62,11.54892186]
[1750174941741,145.53726891,147.67,147.64,11.54892186]
[1750174942047,145.53726891,147.67,147.63,11.54892186]
[1750174942342,11.54892186,147.65,147.61,6.77460876]
[1750174942517,11.54892186,147.65,147.61,32.77460876]
[1750174942717,11.54892186,147.65,147.61,44.32353062]
[1750174942922,11.54892186,147.64,147.61,26.0]
[1750174943740,11.54892186,147.65,147.61,32.77451406]
[1750174944114,11.54892186,147.65,147.61,44.32343592]
[1750174944314,157.08619077,147.66,147.62,11.54892186]
[1750174945047,145.53726891,147.66,147.63,18.32261284]
[1750174945208,50.24964886,147.7,147.65,11.54892186]
[1750174945209,157.08619077,147.7,147.65,11.54892186]
[1750174945407,157.08619077,147.7,147.66,26.0]
[1750174945408,145.53726891,147.7,147.66,26.0]
[1750174945640,157.08619077,147.7,147.66,26.0]
[1750174945857,157.08619077,147.7,147.66,37.54892186]
[1750174946137,145.53726891,147.7,147.67,11.54892186]
[1750174946635,145.53726891,147.7,147.66,37.54892186]
[1750174946870,157.08619077,147.7,147.66,37.54892186]
[1750174947021,157.08619077,147.7,147.66,44.3212219]
[1750174947710,145.53726891,147.7,147.66,44.3212219]
[1750174949238,145.53726891,147.7,147.66,32.77230004]
[1750174949433,145.53726891,147.7,147.66,44.3212219]
[1750174950549,145.53726891,147.74,147.69,37.54892186]
[1750174950707,145.53726891,147.74,147.73,11.54892186]
[1750174950912,145.53726891,147.74,147.72,11.54892186]
[1750174951113,157.08619077,147.74,147.7,11.54892186]
[1750174951414,157.08619077,147.74,147.69,26.0]
[1750174951610,163.85498417,147.74,147.69,26.0]
[1750174951835,145.53726891,147.74,147.7,11.54892186]
[1750174952010,145.53726891,147.74,147.71,11.54892186]
[1750174953015,145.53726891,147.74,147.7,11.54892186]
[1750174954124,163.85492587,147.74,147.7,11.54892186]
[1750174954323,163.85492587,147.74,147.69,37.54892186]
[1750174954529,18.3187425,147.72,147.68,11.54892186]
[1750174954717,18.31815742,147.73,147.69,11.54892186]
[1750174954915,145.53726891,147.74,147.68,26.0]
[1750174955128,145.53726891,147.74,147.71,11.54892186]
[1750174955439,152.3059726,147.74,147.68,26.0]
[1750174955853,163.85489446,147.74,147.7,11.54892186]
[1750174957756,163.85489446,147.74,147.69,11.54892186]
[1750174958361,11.54892186,147.73,147.69,8.98548682]
[1750174958935,152.3059726,147.74,147.69,15.75634641]
[1750174959134,163.85489446,147.74,147.7,11.54892186]
[1750174959628,152.3059726,147.74,147.7,11.54892186]
[1750174959862,163.85489446,147.74,147.7,11.54892186]
[1750174960434,145.53726891,147.73,147.7,11.54892186]
[1750174960859,157.08619077,147.73,147.69,11.54892186]
[1750174961163,157.08619077,147.73,147.68,32.77120945]
[1750174961468,157.08619077,147.73,147.69,11.54892186]
[1750174961762,163.85535841,147.73,147.69,11.54892186]
[1750174962265,145.53726891,147.73,147.72,11.54892186]
[1750174962565,0.18,147.78,147.72,11.54892186]
[1750174962566,145.53726891,147.77,147.72,11.54892186]
[1750174962755,145.53726891,147.77,147.75,11.54892186]
[1750174962960,145.53726891,147.77,147.74,6.73485987]
[1750174964063,145.53726891,147.77,147.73,13.50374539]
[1750174964265,145.53726891,147.77,147.75,6.73485987]
[1750174964573,145.53726891,147.77,147.73,6.76888552]
[1750174964860,11.55026713,147.76,147.72,37.55026713]
[1750174965437,11.55026713,147.75,147.7,6.7704807]
[1750174965650,11.55026713,147.74,147.7,11.55026713]
[1750174965991,163.85493933,147.77,147.73,11.55026713]
[1750174966280,145.53726891,147.77,147.73,11.55026713]
[1750174966498,145.53726891,147.77,147.75,11.55026713]
[1750174966983,145.53726891,147.77,147.74,11.55026713]
[1750174967353,157.08753604,147.77,147.72,26.0]
[1750174967581,145.53726891,147.76,147.73,11.55026713]
[1750174969767,145.53726891,147.76,147.73,18.31934972]
[1750174970083,145.53726891,147.76,147.73,11.55026713]
[1750174971672,145.53726891,147.76,147.74,11.55026713]
[1750174972468,145.53726891,147.76,147.73,6.76905542]
[1750174972675,145.53726891,147.76,147.74,11.55026713]
[1750174973266,145.53726891,147.76,147.73,6.76905542]
[1750174973267,145.53726891,147.76,147.73,18.31932255]
[1750174973502,145.53726891,147.76,147.74,11.55026713]
[1750174974258,145.53726891,147.76,147.73,6.76905542]
[1750174974500,145.53726891,147.76,147.69,13.1961287]
[1750174974501,145.53726891,147.75,147.69,1.5037]
[1750174974701,11.55026713,147.7,147.65,1.5366]